bitfinex-derivatives/quotes_SOLF0:USTF0_20230701
["timestamp","ask_amount","ask_price","bid_price","bid_amount"]
[1688252804063,97.45,18.465,18.459,97.45]
[1688252804261,0.55268132,18.467,18.461,97.45]
[1688252804459,4.27633515,18.466,18.462,0.83710541]
[1688252805261,26.97988377,18.467,18.462,0.83710541]
[1688252808171,26.97988377,18.467,18.464,96.84]
[1688252811966,26.97988377,18.467,18.465,96.84]
[1688252813378,26.97988377,18.467,18.464,97.45]
[1688252821888,26.97988377,18.467,18.462,97.67710541]
[1688252822381,4.27628324,18.466,18.462,97.67710541]
[1688252822589,4.27628324,18.466,18.462,0.04065147]
[1688252822890,97.45,18.464,18.462,0.04065147]
[1688252832383,124.83174069,18.464,18.462,0.04065147]
[1688252839286,97.45,18.463,18.462,0.04065147]
[1688252851894,328.80838247,18.463,18.462,0.04065147]
[1688252854705,200.0,18.461,18.447,97.45]
[1688252854898,97.45,18.454,18.447,97.45]
[1688252855706,0.83550698,18.452,18.449,0.88479273]
[1688252868109,97.45,18.451,18.449,0.88479273]
[1688252870915,0.83550698,18.452,18.449,0.88479273]
[1688252871118,0.83550698,18.452,18.45,97.45]
[1688252871818,0.83550698,18.452,18.451,96.84]
[1688252881925,0.83550698,18.452,18.449,97.72479273]
[1688252882631,27.08559,18.46,18.451,97.45]
[1688252882825,98.00268132,18.467,18.459,96.84]
[1688252883513,98.00268132,18.467,18.461,0.84600723]
[1688252883724,125.21986641,18.467,18.461,0.84600723]
[1688252884025,98.00268132,18.467,18.461,0.84600723]
[1688252884421,26.57263314,18.473,18.461,0.84600723]
[1688252884620,97.45,18.472,18.465,98.29584341]
[1688252885229,97.45,18.474,18.467,96.84]
[1688252885423,27.47699667,18.476,18.47,96.84]
[1688252885624,97.45,18.477,18.471,0.85019396]
[1688252888427,97.45,18.483,18.476,96.84]
[1688252888632,97.45,18.483,18.478,0.8048613]
[1688252890827,108.79,18.485,18.478,0.8048613]
[1688252891027,4.26755092,18.484,18.48,0.81142695]
[1688252892039,108.79,18.487,18.48,0.81142695]
[1688252892235,4.26760739,18.486,18.48,0.81142695]
[1688252894036,4.26760739,18.485,18.48,0.81142695]
[1688252894237,4.26760739,18.484,18.48,0.81142695]
[1688252894543,108.79,18.489,18.48,0.81142695]
[1688252894836,4.26749868,18.488,18.48,0.81142695]
[1688252902645,4.26749868,18.488,18.481,107.82]
[1688252902842,4.26749868,18.487,18.481,107.82]
[1688252903144,4.26749868,18.486,18.481,107.82]
[1688252903344,4.26749868,18.485,18.481,107.82]
[1688252903539,4.26749868,18.489,18.481,107.82]
[1688252903741,4.26749868,18.488,18.481,107.82]
[1688252903940,4.26749868,18.487,18.481,107.82]
[1688252904246,227.1621191,18.491,18.482,0.79301324]
[1688252904247,4.26749868,18.486,18.482,0.79301324]
[1688252904444,4.26749868,18.485,18.482,0.79301324]
[1688252904634,4.26749868,18.484,18.482,0.79301324]
[1688252904842,108.79,18.489,18.482,0.79301324]
[1688252905037,4.2676713,18.488,18.482,0.79301324]
[1688252905737,108.79,18.486,18.482,0.79301324]
[1688252905942,4.2676713,18.485,18.482,0.79301324]
[1688252909337,4.2676713,18.484,18.482,0.79301324]
[1688252909638,108.79,18.489,18.482,0.79301324]
[1688252909853,4.2676085,18.488,18.482,0.79301324]
[1688252911437,4.2676085,18.487,18.482,0.79301324]
[1688252911639,4.2676085,18.486,18.482,0.79301324]
[1688252911842,4.2676085,18.485,18.482,0.79301324]
[1688252912046,4.2676085,18.484,18.482,0.79301324]
[1688252912347,108.79,18.492,18.482,0.79301324]
[1688252912548,4.26746222,18.491,18.482,0.79301324]
[1688252915046,61.21626222,18.491,18.482,0.79301324]
[1688252915238,4.26746222,18.49,18.482,0.79301324]
[1688252915944,113.05746222,18.49,18.482,0.79301324]
[1688252916253,4.26746222,18.489,18.482,0.79301324]
[1688252923441,108.79,18.486,18.482,0.79301324]
[1688252923643,108.79,18.484,18.482,0.79301324]
[1688252923840,4.26746222,18.483,18.482,0.79301324]
[1688252926461,4.26746222,18.486,18.482,0.79301324]
[1688252926749,4.26746222,18.485,18.482,0.79301324]
[1688252926952,4.26746222,18.484,18.482,0.79301324]
[1688252927154,4.26746222,18.483,18.482,0.79301324]
[1688252927752,4.26746222,18.486,18.482,0.79301324]
[1688252928056,108.79,18.487,18.482,0.79301324]
[1688252928057,4.26746222,18.485,18.482,0.79301324]
[1688252928257,4.26746222,18.484,18.482,0.79301324]
[1688252928451,4.26746222,18.483,18.482,0.79301324]
[1688252928655,4.26746222,18.486,18.482,0.79301324]
[1688252928847,4.26746222,18.485,18.482,0.79301324]
[1688252929054,4.26746222,18.484,18.482,0.79301324]
[1688252929353,4.26746222,18.483,18.482,0.79301324]
[1688252929653,108.79,18.487,18.482,0.79301324]
[1688252929654,4.26746222,18.486,18.482,0.79301324]
[1688252929856,4.26746222,18.485,18.482,0.79301324]
[1688252930155,4.26746222,18.484,18.482,0.79301324]
[1688252930350,4.26746222,18.483,18.482,0.79301324]
[1688252931253,4.26746222,18.486,18.482,0.79301324]
[1688252931458,1.00008029,18.483,18.482,0.79301324]
[1688252931957,5.26754251,18.483,18.482,0.79301324]
[1688252932558,6.2676228,18.483,18.482,0.79301324]
[1688252938362,7.26770309,18.483,18.482,0.79301324]
[1688252939857,3.00024087,18.483,18.482,0.79301324]
[1688252940664,7.26910189,18.483,18.482,0.79301324]
[1688252940865,3.00024087,18.483,18.482,0.79301324]
[1688252942159,4.00032116,18.483,18.482,0.79301324]
[1688252942362,5.00040145,18.483,18.482,0.79301324]
[1688252945162,9.26935002,18.483,18.482,0.79301324]
[1688252948468,5.00040145,18.483,18.482,0.79301324]
[1688252948664,4.00032116,18.483,18.482,0.79301324]
[1688252948856,5.00040145,18.483,18.482,0.79301324]
[1688252950169,9.26924594,18.483,18.482,0.79301324]
[1688252951173,1e-08,18.483,18.482,0.79301324]
[1688252951469,1e-08,18.49,18.482,0.79301324]
[1688252960975,97.85,18.489,18.482,98.61301324]
[1688252961176,1e-08,18.488,18.482,98.61301324]
[1688252971971,1e-08,18.488,18.485,97.42]
[1688252972175,1e-08,18.49,18.485,97.42]
[1688252972376,1e-08,18.49,18.486,0.7760537]
[1688252991802,1e-08,18.49,18.487,97.42]
[1688252992098,3.93641033,18.492,18.489,97.42]
[1688252992396,3.93641033,18.491,18.489,98.29222212]
[1688252992693,124.37662534,18.495,18.489,98.29222212]
[1688252992897,3.93530565,18.494,18.489,98.29222212]
[1688252996400,3.93530565,18.494,18.492,97.82]
[1688252997407,97.85,18.499,18.492,97.82]
[1688252997701,3.93340951,18.498,18.494,0.78375306]
[1688252999107,3.93340951,18.498,18.495,97.42]
[1688252999309,3.93340951,18.497,18.495,97.42]
[1688252999509,97.12,18.501,18.495,97.42]
[1688252999811,3.62954164,18.5,18.495,97.42]
[1688253006605,3.62954164,18.5,18.494,0.78375306]
[1688253006807,97.85,18.506,18.499,97.42]
[1688253007012,3.32290273,18.505,18.501,0.78152268]
[1688253007215,97.85,18.508,18.501,98.60152268]
[1688253007418,3.32286107,18.507,18.501,98.60152268]
[1688253011916,100.44286107,18.507,18.501,0.78152268]
[1688253012120,3.32286107,18.506,18.501,0.78152268]
[1688253015918,6.107e-05,18.506,18.501,0.78152268]
[1688253016124,6.107e-05,18.506,18.503,97.42]
[1688253016327,6.107e-05,18.509,18.503,97.42]
[1688253031924,6.107e-05,18.509,18.504,97.42]
[1688253032128,6.107e-05,18.51,18.504,97.42]
[1688253032330,6.107e-05,18.51,18.505,0.7993606]
[1688253039346,97.12,18.508,18.505,0.7993606]
[1688253039540,6.107e-05,18.507,18.505,0.7993606]
[1688253049653,6.107e-05,18.508,18.505,0.7993606]
[1688253067567,124.93440593,18.509,18.505,0.7993606]
[1688253067863,2.52666695,18.508,18.505,0.7993606]
[1688253068473,124.93440593,18.509,18.505,0.7993606]
[1688253068658,65.2783,18.506,18.505,0.7993606]
[1688253069369,130.5566,18.506,18.505,0.7993606]
[1688253069574,195.8349,18.506,18.505,0.7993606]
[1688253069966,261.1132,18.506,18.505,0.7993606]
[1688253070566,326.3915,18.506,18.505,0.7993606]
[1688253072171,391.6698,18.506,18.505,0.7993606]
[1688253078278,326.3915,18.506,18.505,0.7993606]
[1688253078480,456.9481,18.506,18.505,0.7993606]
[1688253078981,522.2264,18.506,18.505,0.7993606]
[1688253086687,0.79327029,18.505,18.501,97.42]
[1688253086890,65.2783,18.502,18.501,97.42]
[1688253089297,65.2783,18.502,18.5,0.83435369]
[1688253089490,100.37841845,18.501,18.491,97.82]
[1688253089691,97.12,18.498,18.491,97.82]
[1688253089998,65.2783,18.502,18.497,97.42]
[1688253090495,0.77132745,18.501,18.498,0.81160546]
[1688253092602,0.77132745,18.501,18.495,97.82]
[1688253092897,0.77132745,18.501,18.496,122.74137433]
[1688253093193,65.2783,18.497,18.496,122.74137433]
[1688253093395,130.5566,18.497,18.492,97.42]
[1688253093793,64.39531515,18.493,18.492,97.42]
[1688253093996,64.39531515,18.493,18.488,97.82]
[1688253094198,162.24531515,18.493,18.489,122.79876686]
[1688253094398,64.39531515,18.493,18.49,122.79876686]
[1688253094591,64.39531515,18.493,18.483,97.42]
[1688253094592,97.12,18.491,18.483,97.42]
[1688253094898,97.12,18.487,18.485,0.76341696]
[1688253095096,97.12,18.487,18.484,0.74781205]
[1688253099395,128.7906303,18.485,18.484,0.74781205]
[1688253112203,64.39531515,18.485,18.484,0.74781205]
[1688253112405,193.18594545,18.485,18.484,0.74781205]
[1688253121816,291.03594545,18.485,18.484,0.74781205]
[1688253128519,491.03594545,18.485,18.473,97.82]
[1688253128712,97.85,18.477,18.47,97.82]
[1688253129518,97.85,18.477,18.472,0.79693472]
[1688253129713,0.82459204,18.475,18.472,0.79693472]
[1688253131416,64.39531515,18.473,18.472,0.79693472]
[1688253132621,257.5812606,18.473,18.472,0.79693472]
[1688253136025,354.7012606,18.473,18.472,0.79693472]
[1688253136413,354.7012606,18.473,18.465,97.82]
[1688253136619,354.7012606,18.473,18.459,97.82]
[1688253136620,97.12,18.466,18.459,97.82]
[1688253137525,63.85189245,18.46,18.459,97.82]
[1688253141925,63.85189245,18.46,18.457,97.82]
[1688253142225,64.7207175,18.46,18.457,97.82]
[1688253144023,63.85189245,18.458,18.457,97.82]
[1688253149232,63.85189245,18.458,18.454,97.42]
[1688253149436,64.61763761,18.458,18.454,97.42]
[1688253150443,127.7037849,18.455,18.454,97.42]
[1688253150940,191.55567735,18.455,18.454,97.42]
[1688253157248,127.7037849,18.455,18.454,97.42]
[1688253157435,191.55567735,18.455,18.454,97.42]
[1688253159245,181.78467735,18.455,18.454,97.42]
[1688253159448,0.76574516,18.458,18.454,97.42]
[1688253159648,0.76574516,18.458,18.457,97.42]
[1688253159840,200.0,18.484,18.46,200.0]
[1688253160038,97.85,18.472,18.465,97.82]
[1688253160845,0.78837267,18.47,18.467,0.76486533]
[1688253161845,97.90837267,18.47,18.467,0.76486533]
[1688253171853,0.78837267,18.47,18.467,0.76486533]
[1688253180563,97.90837267,18.47,18.467,0.76486533]
[1688253180768,97.12,18.468,18.461,97.42]
[1688253181859,0.76320842,18.466,18.461,97.42]
[1688253194570,97.12,18.465,18.459,97.82]
[1688253194773,0.84407261,18.464,18.459,97.82]
[1688253197481,0.84407261,18.464,18.454,57.8956]
[1688253197777,0.84407261,18.464,18.459,76.45559458]
[1688253201981,0.84407261,18.464,18.457,97.82]
[1688253202184,98.69407261,18.464,18.457,97.82]
[1688253209688,98.69407261,18.464,18.46,200.0]
[1688253209892,0.80096446,18.464,18.462,97.82]
[1688253231901,0.80096446,18.464,18.463,97.82]
[1688253233204,97.85,18.472,18.47,200.0]
[1688253233403,257.5812606,18.473,18.471,97.82]
[1688253233594,257.5812606,18.473,18.472,97.42]
[1688253233996,18.4618606,18.473,18.472,97.42]
[1688253234196,97.85,18.483,18.472,97.42]
[1688253234496,97.85,18.483,18.476,98.21964579]
[1688253234898,0.79863276,18.479,18.476,98.21964579]
[1688253235703,0.79863276,18.479,18.476,0.79964579]
[1688253261823,0.79863276,18.479,18.477,97.42]
[1688253265622,0.79863276,18.479,18.478,200.0]
[1688253265828,0.79863276,18.479,18.478,297.82]
[1688253268824,56.2257,18.489,18.48,200.0]
[1688253269027,56.2257,18.489,18.484,97.42]
[1688253269731,0.79771246,18.486,18.484,97.42]
[1688253303842,0.79771246,18.486,18.47,200.0]
[1688253304039,97.85,18.48,18.473,97.82]
[1688253304239,97.12,18.476,18.47,200.0]
[1688253304841,0.87835567,18.475,18.471,0.72785733]
[1688253306146,0.87835567,18.475,18.472,97.82]
[1688253311753,0.87835567,18.475,18.474,97.42]
[1688253311951,225.9106303,18.485,18.474,97.42]
[1688253312255,128.7906303,18.485,18.481,97.42]
[1688253312847,129.55237324,18.485,18.481,98.3050353]
[1688253314656,97.12,18.484,18.481,0.8850353]
[1688253314856,97.12,18.484,18.478,97.82]
[1688253315951,97.12,18.484,18.479,0.72000606]
[1688253316255,97.12,18.484,18.48,200.0]
[1688253316455,129.55237324,18.485,18.48,297.42]
[1688253318457,129.55237324,18.485,18.48,97.42]
[1688253318859,97.12,18.484,18.48,200.0]
[1688253321962,226.67237324,18.485,18.48,200.0]
[1688253324267,226.67237324,18.485,18.479,98.14000606]
[1688253327369,226.67237324,18.485,18.48,200.0]
[1688253329074,226.67237324,18.485,18.48,183.0525]
[1688253329281,97.85,18.484,18.48,183.0525]
[1688253341880,129.55237324,18.485,18.48,183.0525]
[1688253345582,129.55237324,18.485,18.481,97.42]
[1688253351887,129.55237324,18.485,18.483,97.82]
[1688253365993,129.55237324,18.485,18.48,97.82]
[1688253367593,97.85,18.484,18.479,0.72000606]
[1688253367797,114.7975,18.481,18.475,97.82]
[1688253368900,0.75655584,18.48,18.475,97.82]
[1688253372000,0.75655584,18.48,18.476,97.82]
[1688253374305,0.75655584,18.48,18.478,97.42]
[1688253378803,0.75655584,18.48,18.475,97.42]
[1688253381897,0.75655584,18.48,18.476,97.42]
[1688253383805,0.75655584,18.48,18.475,97.82]
[1688253391821,97.87655584,18.48,18.473,97.42]
[1688253397317,97.12,18.477,18.471,97.42]
[1688253397521,0.82645539,18.476,18.471,97.42]
[1688253401923,97.94645539,18.476,18.47,97.42]
[1688253411934,0.82645539,18.476,18.472,97.82]
[1688253415943,97.85,18.475,18.469,183.0525]
[1688253418947,97.85,18.475,18.468,97.42]
[1688253419248,16.9475,18.47,18.465,97.82]
[1688253419448,0.8042909,18.469,18.465,97.82]
[1688253419951,97.9242909,18.469,18.462,97.82]
[1688253422046,97.12,18.467,18.461,97.82]
[1688253431955,97.85,18.466,18.459,280.4725]
[1688253432156,0.824341,18.464,18.459,280.4725]
[1688253438870,0.824341,18.464,18.459,97.42]
[1688253439070,0.824341,18.464,18.459,280.4725]
[1688253440172,0.824341,18.464,18.459,97.42]
[1688253440473,0.824341,18.464,18.459,280.4725]
[1688253440772,97.12,18.463,18.456,97.82]
[1688253440980,114.7975,18.46,18.453,97.42]
[1688253441364,16.9475,18.451,18.447,26.92122692]
[1688253441574,16.9475,18.451,18.448,97.42]
[1688253441575,17.73450027,18.451,18.448,97.42]
[1688253441776,17.70857855,18.451,18.448,97.42]
[1688253443969,0.76107855,18.451,18.448,97.42]
[1688253444176,0.76107855,18.451,18.446,97.82]
[1688253444474,17.69381064,18.45,18.446,97.82]
[1688253446170,114.81381064,18.45,18.444,97.42]
[1688253447876,97.12,18.447,18.44,97.42]
[1688253448072,0.82788109,18.445,18.44,97.42]
[1688253450968,97.85,18.444,18.439,183.0525]
[1688253451682,97.85,18.444,18.437,97.42]
[1688253451981,114.0675,18.44,18.433,97.82]
[1688253452180,0.8759132,18.438,18.433,97.82]
[1688253454280,97.12,18.436,18.43,97.42]
[1688253454880,0.8759132,18.438,18.429,183.0525]
[1688253454881,97.85,18.434,18.429,183.0525]
[1688253455081,0.75179068,18.433,18.43,9.96169792]
[1688253456578,0.75179068,18.433,18.429,183.0525]
[1688253456879,0.75179068,18.433,18.43,107.78147612]
[1688253457076,0.75179068,18.433,18.43,97.82]
[1688253458487,0.75179068,18.433,18.427,97.42]
[1688253458676,0.75179068,18.433,18.428,9.96134689]
[1688253459473,0.75179068,18.433,18.429,183.0525]
[1688253460575,0.75179068,18.433,18.429,280.4725]
[1688253460777,0.75179068,18.433,18.43,9.96079505]
[1688253461076,0.75179068,18.433,18.429,280.4725]
[1688253461276,0.75179068,18.433,18.43,9.96153525]
[1688253461885,0.75179068,18.433,18.431,97.82]
[1688253462983,0.75179068,18.433,18.429,280.4725]
[1688253463184,0.75179068,18.433,18.43,9.96139077]
[1688253465479,97.87179068,18.433,18.426,97.82]
[1688253465778,114.0675,18.43,18.421,164.6563]
[1688253465978,16.9475,18.43,18.422,9.96305344]
[1688253466679,0.7798929,18.431,18.422,9.96305344]
[1688253467079,16.9475,18.43,18.422,9.96305344]
[1688253470788,16.9475,18.43,18.424,106.96]
[1688253471790,16.9475,18.43,18.421,106.96]
[1688253471989,16.9475,18.43,18.425,107.82]
[1688253473083,0.86273758,18.429,18.425,107.82]
[1688253481014,0.86273758,18.429,18.424,0.77085704]
[1688253501918,107.98,18.438,18.428,183.0525]
[1688253502914,0.80743248,18.435,18.431,0.75198853]
[1688253503621,108.89,18.442,18.431,108.73198853]
[1688253504016,16.9475,18.44,18.431,108.73198853]
[1688253504418,108.89,18.442,18.431,108.73198853]
[1688253504630,0.86005021,18.438,18.431,108.73198853]
[1688253506517,0.86005021,18.438,18.433,107.82]
[1688253507928,107.57,18.445,18.433,107.82]
[1688253508230,55.928,18.449,18.439,107.45]
[1688253508528,16.9475,18.45,18.439,107.45]
[1688253508915,0.8859293,18.446,18.443,0.77053168]
[1688253515335,107.98,18.455,18.443,107.73053168]
[1688253515523,107.98,18.455,18.443,106.96]
[1688253516130,0.7529073,18.451,18.447,0.81088967]
[1688253516524,16.9475,18.449,18.447,0.81088967]
[1688253517229,107.98,18.457,18.448,183.0525]
[1688253518224,0.4833766,18.454,18.448,183.0525]
[1688253518430,0.4833766,18.454,18.451,0.84796834]
[1688253523025,16.9475,18.459,18.451,0.84796834]
[1688253523227,56.4558,18.461,18.452,107.98]
[1688253523425,107.98,18.463,18.458,183.0525]
[1688253524128,107.98,18.463,18.459,0.80994475]
[1688253524331,107.98,18.466,18.459,0.80994475]
[1688253524635,124.9275,18.469,18.459,0.80994475]
[1688253532844,1.24353297,18.465,18.459,0.80994475]
[1688253540848,1.24353297,18.465,18.46,98.04]
[1688253541453,16.9475,18.469,18.463,98.05]
[1688253541651,16.9475,18.469,18.464,0.73688378]
[1688253545049,97.88,18.466,18.46,98.05]
[1688253546051,0.73534278,18.465,18.46,98.05]
[1688253546256,0.73534278,18.465,18.461,0.85788448]
[1688253548952,114.8275,18.469,18.462,98.04]
[1688253549259,151.1727,18.472,18.465,98.04]
[1688253550150,151.1727,18.472,18.467,0.84352736]
[1688253550951,108.87,18.477,18.467,0.84352736]
[1688253551152,108.87,18.477,18.47,0.81451396]
[1688253557269,56.2873,18.478,18.47,0.81451396]
[1688253563666,165.1573,18.478,18.47,0.81451396]
[1688253568181,56.2873,18.478,18.471,108.43]
[1688253569062,16.9475,18.479,18.471,108.43]
[1688253581583,16.9475,18.469,18.457,183.0525]
[1688253581883,16.9475,18.469,18.46,108.87]
[1688253582283,108.87,18.468,18.457,291.9225]
[1688253582781,0.76533249,18.464,18.461,0.80485922]
[1688253585791,0.76533249,18.464,18.447,435.48]
[1688253585792,16.9475,18.459,18.455,108.87]
[1688253586684,17.75840135,18.459,18.452,108.87]
[1688253587588,17.75840135,18.459,18.448,167.3078]
[1688253587888,17.75840135,18.459,18.452,0.86919235]
[1688253590586,16.9475,18.453,18.452,0.86919235]
[1688253590884,16.9475,18.453,18.443,107.81]
[1688253591890,0.84313957,18.45,18.446,0.85933401]
[1688253595696,16.9475,18.448,18.446,0.85933401]
[1688253602509,16.9475,18.448,18.439,109.4]
[1688253603411,0.84934894,18.445,18.442,0.83478764]
[1688253607214,56.8095,18.453,18.444,108.43]
[1688253607607,56.8095,18.453,18.447,108.87]
[1688253607804,108.58,18.459,18.447,108.87]
[1688253608216,0.7821556,18.455,18.451,0.81692551]
[1688253620321,54.0565,18.462,18.452,108.87]
[1688253621426,0.78760633,18.459,18.455,0.73955687]
[1688253624025,108.87,18.467,18.456,108.35]
[1688253624921,0.87138512,18.463,18.456,108.35]
[1688253625115,0.87138512,18.463,18.46,0.73133886]
[1688253628923,108.74,18.47,18.46,0.73133886]
[1688253629131,108.74,18.47,18.458,107.81]
[1688253629931,0.78138539,18.466,18.462,0.85695711]
[1688253631731,108.74,18.473,18.462,0.85695711]
[1688253632034,108.74,18.477,18.465,108.87]
[1688253632833,0.15920725,18.473,18.469,0.85852426]
[1688253637434,0.15920725,18.473,18.469,109.72852426]
[1688253637627,108.74,18.483,18.472,107.81]
[1688253637832,55.5825,18.484,18.475,108.43]
[1688253638535,55.5825,18.484,18.478,0.80708807]
[1688253639837,164.4525,18.484,18.473,108.87]
[1688253640023,108.58,18.481,18.469,108.35]
[1688253641038,0.80650201,18.477,18.473,0.88593864]
[1688253661349,108.87,18.474,18.461,107.81]
[1688253661644,108.87,18.472,18.461,107.81]
[1688253662238,0.83257055,18.468,18.465,0.87189299]
[1688253665861,109.70257055,18.468,18.457,108.87]
[1688253666158,108.87,18.468,18.457,108.87]
[1688253667062,0.76348508,18.464,18.461,0.75956745]
[1688253670268,0.76348508,18.464,18.454,108.87]
[1688253671264,108.87,18.462,18.457,0.81917301]
[1688253671471,0.81092785,18.461,18.457,0.81917301]
[1688253678669,308.7,18.471,18.458,108.87]
[1688253679666,0.79301491,18.466,18.463,0.83698603]
[1688253680167,109.37301491,18.466,18.455,107.81]
[1688253681173,109.37301491,18.466,18.459,0.80838753]
[1688253681367,53.8435,18.465,18.459,0.80838753]
[1688253682073,108.87,18.464,18.459,0.80838753]
[1688253705786,97.23,18.461,18.459,0.80838753]
[1688253708493,97.23,18.461,18.454,98.04]
[1688253709497,97.23,18.461,18.456,0.82469078]
[1688253711995,98.11,18.459,18.456,0.82469078]
[1688253717891,98.9989154,18.462,18.456,0.82469078]
[1688253719397,0.8889154,18.462,18.457,98.11]
[1688253722795,0.8889154,18.462,18.456,0.82469078]
[1688253722796,98.1189154,18.462,18.456,0.82469078]
[1688253723302,98.11,18.459,18.456,0.82469078]
[1688253723493,98.11,18.459,18.452,98.11]
[1688253724198,98.11,18.455,18.448,98.04]
[1688253724402,98.86573251,18.453,18.45,0.43312916]
[1688253724709,98.11,18.453,18.446,98.04]
[1688253725594,0.75275554,18.451,18.446,98.04]
[1688253730400,0.75275554,18.451,18.445,98.11]
[1688253730601,0.81170636,18.45,18.445,98.11]
[1688253732003,0.81170636,18.45,18.444,98.04]
[1688253732206,0.85599238,18.449,18.444,98.04]
[1688253737012,97.23,18.445,18.434,98.04]
[1688253737206,200.0,18.45,18.434,98.04]
[1688253737207,0.79330222,18.441,18.434,98.04]
[1688253739301,0.79330222,18.441,18.437,98.04]
[1688253740911,0.79330222,18.441,18.43,107.88]
[1688253740912,108.23330222,18.441,18.43,107.88]
[1688253741907,0.79330222,18.441,18.432,107.28]
[1688253742107,0.84228251,18.438,18.432,107.28]
[1688253748515,0.84228251,18.438,18.434,107.56]
[1688253749016,106.93,18.452,18.437,107.88]
[1688253749206,106.93,18.452,18.435,200.0]
[1688253749207,106.93,18.452,18.441,107.28]
[1688253750014,106.93,18.452,18.445,0.80130192]
[1688253750015,0.80020197,18.448,18.445,0.80130192]
[1688253768725,107.73020197,18.448,18.436,162.8663]
[1688253769018,106.93,18.448,18.436,162.8663]
[1688253769526,107.88,18.445,18.434,107.05]
[1688253769721,0.89075756,18.441,18.434,107.05]
[1688253774024,0.89075756,18.441,18.435,200.0]
[1688253774226,107.88,18.45,18.439,107.44]
[1688253775328,0.7661194,18.446,18.443,0.89344063]
[1688253795243,107.88,18.453,18.443,0.89344063]
[1688253795437,107.88,18.453,18.442,107.88]
[1688253795937,107.18,18.456,18.445,107.56]
[1688253796146,107.44,18.459,18.449,0.85625802]
[1688253796335,59.5574,18.464,18.451,107.28]
[1688253796336,107.88,18.462,18.451,107.28]
[1688253797340,0.80469119,18.458,18.455,0.87988944]
[1688253799939,59.5574,18.464,18.455,0.87988944]
[1688253801042,0.85153751,18.461,18.455,0.87988944]
[1688253810851,98.15153751,18.461,18.455,0.87988944]
[1688253811149,0.85153751,18.461,18.457,98.02]
[1688253811849,0.85153751,18.461,18.455,98.89988944]
[1688253821859,97.3,18.46,18.455,0.87988944]
[1688253831866,98.95153751,18.461,18.455,98.40988944]
[1688253833661,97.3,18.458,18.455,0.87988944]
[1688253834266,98.1,18.456,18.447,98.02]
[1688253834568,97.3,18.451,18.444,97.53]
[1688253834956,98.1,18.449,18.442,98.02]
[1688253835369,0.74563249,18.447,18.444,0.89109189]
[1688253843067,0.74563249,18.447,18.445,97.53]
[1688253843273,97.3,18.453,18.445,97.53]
[1688253843576,98.1,18.456,18.449,97.53]
[1688253844375,0.82325477,18.454,18.451,0.78747813]
[1688253850179,0.82325477,18.454,18.451,98.80747813]
[1688253852284,59.5574,18.464,18.453,97.53]
[1688253852285,97.3,18.461,18.453,97.53]
[1688253853278,0.77133095,18.459,18.453,97.53]
[1688253853478,0.77133095,18.459,18.457,98.02]
[1688253853780,0.83133862,18.46,18.457,98.02]
[1688253860686,0.83133862,18.46,18.456,0.74585958]
[1688253871989,98.13133862,18.46,18.456,0.74585958]
[1688253878408,98.1,18.458,18.45,97.53]
[1688253879603,0.87864104,18.456,18.452,0.87294053]
[1688253882099,0.87864104,18.456,18.453,98.02]
[1688253891910,0.87864104,18.456,18.452,0.87294053]
[1688253899723,98.97864104,18.456,18.452,0.87294053]
[1688253903523,0.87864104,18.456,18.452,0.87294053]
[1688253914342,98.17864104,18.456,18.452,0.87294053]
[1688253914542,98.17864104,18.456,18.448,97.53]
[1688253915554,98.17864104,18.456,18.45,0.75941873]
[1688253918646,98.1,18.452,18.45,0.75941873]
[1688253921852,98.1,18.451,18.45,0.75941873]
[1688253924352,98.1,18.451,18.444,98.02]
[1688253924657,98.1,18.449,18.441,97.53]
[1688253925458,97.3,18.442,18.433,98.02]
[1688253925647,0.83992379,18.439,18.433,98.02]